[Event "Rapid Tournament (RAP)"]
[Site "Biel, Switzerland"]
[Date "2026.07.12"]
[Round "2.1"]
[White "Arntz, Christoph"]
[Black "Amonatov, Farrukh"]
[Result "0-1"]
[TimeControl "15 + 5"]
[WhiteTitle "-"]
[BlackTitle "-"]
[WhiteFideId "16257723"]
[BlackFideId "14700077"]
[WhiteElo "1999"]
[BlackElo "2593"]

1. f4 {[%clk 00:15:07]} {[%emt 00:00:03]} d5 {[%clk 00:15:08]} {[%emt
00:00:02]} 2. Nf3 {[%clk 00:15:10]} {[%emt 00:00:05]} Nf6 {[%clk 00:15:11]} 3.
e3 {[%clk 00:15:12]} {[%emt 00:00:03]} Bg4 {[%clk 00:15:13]} {[%emt 00:00:02]}
4. Be2 {[%clk 00:15:03]} {[%emt 00:00:15]} c6 {[%clk 00:15:05]} {[%emt
00:00:13]} 5. O-O {[%clk 00:14:59]} {[%emt 00:00:09]} Nbd7 {[%clk 00:15:08]}
{[%emt 00:00:01]} 6. h3 {[%clk 00:14:50]} {[%emt 00:00:15]} Bxf3 {[%clk
00:15:10]} {[%emt 00:00:02]} 7. Bxf3 {[%clk 00:14:53]} {[%emt 00:00:02]} e5
{[%clk 00:15:13]} {[%emt 00:00:02]} 8. fxe5 {[%clk 00:13:57]} {[%emt 00:01:02]}
Nxe5 {[%clk 00:15:15]} {[%emt 00:00:02]} 9. d4 {[%clk 00:13:55]} {[%emt
00:00:07]} Nxf3+ {[%clk 00:14:59]} {[%emt 00:00:21]} 10. Qxf3 {[%clk 00:13:36]}
{[%emt 00:00:25]} Bd6 {[%clk 00:15:02]} {[%emt 00:00:02]} 11. Nd2 {[%clk
00:12:52]} {[%emt 00:00:49]} Qe7 {[%clk 00:15:01]} {[%emt 00:00:06]} 12. c4
{[%clk 00:11:59]} {[%emt 00:01:00]} O-O {[%clk 00:15:00]} {[%emt 00:00:05]} 13.
Re1 {[%clk 00:09:39]} {[%emt 00:02:25]} Rfe8 {[%clk 00:14:44]} {[%emt
00:00:20]} 14. c5 {[%clk 00:08:25]} {[%emt 00:01:20]} Bc7 {[%clk 00:14:42]}
{[%emt 00:00:05]} 15. Nf1 {[%clk 00:08:16]} {[%emt 00:00:16]} Ne4 {[%clk
00:14:39]} {[%emt 00:00:07]} 16. Nd2 {[%clk 00:08:11]} {[%emt 00:00:11]} Ba5
{[%clk 00:13:17]} {[%emt 00:01:27]} 17. Qe2 {[%clk 00:07:55]} {[%emt 00:00:21]}
Bxd2 {[%clk 00:12:26]} {[%emt 00:00:56]} 18. Bxd2 {[%clk 00:07:58]} {[%emt
00:00:03]} Qg5 {[%clk 00:12:20]} {[%emt 00:00:10]} 19. Rad1 {[%clk 00:07:22]}
{[%emt 00:00:40]} Re6 {[%clk 00:12:20]} {[%emt 00:00:05]} 20. Bc1 {[%clk
00:06:49]} {[%emt 00:00:39]} Rae8 {[%clk 00:12:21]} {[%emt 00:00:02]} 21. Qc2
{[%clk 00:05:46]} {[%emt 00:01:09]} Rh6 {[%clk 00:12:12]} {[%emt 00:00:14]} 22.
Kh1 {[%clk 00:05:13]} {[%emt 00:00:39]} Qg6 {[%clk 00:11:28]} {[%emt 00:00:48]}
23. Qb3 {[%clk 00:05:00]} {[%emt 00:00:19]} Qg3 {[%clk 00:09:36]} {[%emt
00:01:56]} 24. Re2 {[%clk 00:02:59]} {[%emt 00:02:06]} Ree6 {[%clk 00:09:36]}
{[%emt 00:00:04]} 25. Qxb7 {[%clk 00:02:21]} {[%emt 00:00:44]} Rxh3+ {[%clk
00:09:38]} {[%emt 00:00:02]} 0-1

[Event "Rapid Tournament (RAP)"]
[Site "Biel, Switzerland"]
[Date "2026.07.12"]
[Round "2.2"]
[White "Kozak, Adam"]
[Black "Labrovic, Jakov"]
[Result "1-0"]
[TimeControl "15 + 5"]
[WhiteTitle "-"]
[BlackTitle "-"]
[WhiteFideId "753246"]
[BlackFideId "14549786"]
[WhiteElo "2592"]
[BlackElo "2005"]

1. d4 {[%clk 00:15:07]} {[%emt 00:00:02]} Nf6 {[%clk 00:15:08]} {[%emt
00:00:03]} 2. c4 {[%clk 00:15:08]} {[%emt 00:00:02]} Nc6 {[%clk 00:15:12]}
{[%emt 00:00:03]} 3. Nf3 {[%clk 00:14:37]} {[%emt 00:00:35]} e6 {[%clk
00:15:11]} {[%emt 00:00:07]} 4. g3 {[%clk 00:14:35]} {[%emt 00:00:07]} Bb4+
{[%clk 00:15:14]} {[%emt 00:00:03]} 5. Bd2 {[%clk 00:14:34]} {[%emt 00:00:06]}
Qe7 {[%clk 00:15:17]} {[%emt 00:00:02]} 6. Bg2 {[%clk 00:13:05]} {[%emt
00:01:34]} Ne4 {[%clk 00:14:35]} {[%emt 00:00:47]} 7. O-O {[%clk 00:12:58]}
{[%emt 00:00:11]} f5 {[%clk 00:14:04]} {[%emt 00:00:37]} 8. Bxb4 {[%clk
00:12:51]} {[%emt 00:00:12]} Qxb4 {[%clk 00:14:00]} {[%emt 00:00:09]} 9. Qc2
{[%clk 00:12:51]} {[%emt 00:00:04]} O-O {[%clk 00:13:51]} {[%emt 00:00:14]} 10.
a3 {[%clk 00:12:47]} {[%emt 00:00:09]} Qe7 {[%clk 00:13:47]} {[%emt 00:00:08]}
11. Nc3 {[%clk 00:12:49]} {[%emt 00:00:03]} Nxc3 {[%clk 00:13:18]} {[%emt
00:00:34]} 12. Qxc3 {[%clk 00:12:52]} {[%emt 00:00:02]} d6 {[%clk 00:12:55]}
{[%emt 00:00:28]} 13. b4 {[%clk 00:12:17]} {[%emt 00:00:40]} e5 {[%clk
00:12:24]} {[%emt 00:00:36]} 14. dxe5 {[%clk 00:12:16]} {[%emt 00:00:07]} Nxe5
{[%clk 00:12:22]} {[%emt 00:00:08]} 15. c5 {[%clk 00:12:17]} {[%emt 00:00:04]}
Nxf3+ {[%clk 00:11:42]} {[%emt 00:00:44]} 16. Bxf3 {[%clk 00:12:18]} {[%emt
00:00:03]} dxc5 {[%clk 00:11:39]} {[%emt 00:00:09]} 17. bxc5 {[%clk 00:12:21]}
{[%emt 00:00:02]} c6 {[%clk 00:11:40]} {[%emt 00:00:04]} 18. Rfd1 {[%clk
00:12:23]} {[%emt 00:00:02]} Be6 {[%clk 00:11:40]} {[%emt 00:00:05]} 19. Rd6
{[%clk 00:12:22]} {[%emt 00:00:06]} Rad8 {[%clk 00:11:07]} {[%emt 00:00:39]} 20.
Rad1 {[%clk 00:12:21]} {[%emt 00:00:06]} Rxd6 {[%clk 00:11:05]} {[%emt
00:00:07]} 21. cxd6 {[%clk 00:12:18]} {[%emt 00:00:08]} Qf7 {[%clk 00:10:38]}
{[%emt 00:00:32]} 22. Qc5 {[%clk 00:12:01]} {[%emt 00:00:22]} a6 {[%clk
00:09:49]} {[%emt 00:00:54]} 23. a4 {[%clk 00:12:01]} {[%emt 00:00:05]} Rd8
{[%clk 00:09:07]} {[%emt 00:00:46]} 24. a5 {[%clk 00:11:55]} {[%emt 00:00:11]}
Rd7 {[%clk 00:09:09]} {[%emt 00:00:03]} 25. Rd3 {[%clk 00:11:08]} {[%emt
00:00:52]} f4 {[%clk 00:07:54]} {[%emt 00:01:20]} 26. Rd4 {[%clk 00:09:48]}
{[%emt 00:01:26]} fxg3 {[%clk 00:07:37]} {[%emt 00:00:22]} 27. hxg3 {[%clk
00:09:51]} {[%emt 00:00:02]} Qf5 {[%clk 00:06:52]} {[%emt 00:00:50]} 28. Qxf5
{[%clk 00:09:53]} {[%emt 00:00:03]} Bxf5 {[%clk 00:06:56]} {[%emt 00:00:01]} 29.
e4 {[%clk 00:09:56]} {[%emt 00:00:02]} Be6 {[%clk 00:06:53]} {[%emt 00:00:08]}
30. e5 {[%clk 00:09:59]} {[%emt 00:00:02]} g5 {[%clk 00:06:55]} {[%emt
00:00:03]} 31. Be2 {[%clk 00:09:28]} {[%emt 00:00:37]} Kf7 {[%clk 00:06:37]}
{[%emt 00:00:23]} 32. f4 {[%clk 00:09:27]} {[%emt 00:00:05]} Kg6 {[%clk
00:05:46]} {[%emt 00:00:55]} 33. Bd3+ {[%clk 00:09:25]} {[%emt 00:00:08]} Kg7
{[%clk 00:04:26]} {[%emt 00:01:25]} 34. f5 {[%clk 00:08:23]} {[%emt 00:01:07]}
Bd5 {[%clk 00:04:13]} {[%emt 00:00:18]} 35. g4 {[%clk 00:08:24]} {[%emt
00:00:04]} Rd8 {[%clk 00:03:11]} {[%emt 00:01:08]} 36. Bc2 {[%clk 00:08:15]}
{[%emt 00:00:13]} Re8 {[%clk 00:02:37]} {[%emt 00:00:40]} 37. e6 {[%clk
00:07:54]} {[%emt 00:00:26]} Kf6 {[%clk 00:02:33]} {[%emt 00:00:09]} 38. e7
{[%clk 00:07:46]} {[%emt 00:00:14]} Rh8 {[%clk 00:02:12]} {[%emt 00:00:25]} 39.
Rxd5 {[%clk 00:06:45]} {[%emt 00:01:06]} cxd5 {[%clk 00:01:58]} {[%emt
00:00:19]} 40. Ba4 {[%clk 00:06:48]} {[%emt 00:00:02]} Kf7 {[%clk 00:01:47]}
{[%emt 00:00:16]} 41. Kf2 {[%clk 00:06:23]} {[%emt 00:00:30]} Rc8 {[%clk
00:01:33]} {[%emt 00:00:19]} 42. Ke3 {[%clk 00:05:48]} {[%emt 00:00:40]} h6
{[%clk 00:01:20]} {[%emt 00:00:19]} 43. Kd3 {[%clk 00:05:44]} {[%emt 00:00:08]}
h5 {[%clk 00:01:03]} {[%emt 00:00:22]} 44. gxh5 {[%clk 00:05:45]} {[%emt
00:00:04]} g4 {[%clk 00:01:06]} {[%emt 00:00:02]} 45. e8=Q+ {[%clk 00:05:18]}
{[%emt 00:00:31]} Rxe8 {[%clk 00:01:07]} {[%emt 00:00:04]} 46. Bxe8+ {[%clk
00:05:21]} {[%emt 00:00:02]} Kxe8 {[%clk 00:01:11]} {[%emt 00:00:01]} 47. h6
{[%clk 00:05:24]} {[%emt 00:00:02]} 1-0

[Event "Rapid Tournament (RAP)"]
[Site "Biel, Switzerland"]
[Date "2026.07.12"]
[Round "2.3"]
[White "Liengme, Samuel"]
[Black "Bu, Xiangzhi"]
[Result "0-1"]
[TimeControl "15 + 5"]
[WhiteTitle "-"]
[BlackTitle "-"]
[WhiteFideId "1368141"]
[BlackFideId "8601445"]
[WhiteElo "1967"]
[BlackElo "2583"]

1. e4 {[%clk 00:15:08]} {[%emt 00:00:02]} e5 {[%clk 00:15:09]} {[%emt
00:00:01]} 2. Nf3 {[%clk 00:15:11]} {[%emt 00:00:02]} Nc6 {[%clk 00:15:13]}
{[%emt 00:00:02]} 3. d4 {[%clk 00:15:15]} {[%emt 00:00:03]} exd4 {[%clk
00:15:16]} 4. Bc4 {[%clk 00:15:18]} {[%emt 00:00:02]} Nf6 {[%clk 00:15:06]}
{[%emt 00:00:15]} 5. e5 {[%clk 00:15:22]} {[%emt 00:00:02]} d5 {[%clk
00:15:10]} {[%emt 00:00:01]} 6. Bb5 {[%clk 00:15:25]} {[%emt 00:00:01]} Ne4
{[%clk 00:15:13]} {[%emt 00:00:01]} 7. Nxd4 {[%clk 00:15:28]} {[%emt 00:00:02]}
Bd7 {[%clk 00:15:17]} {[%emt 00:00:01]} 8. Bxc6 {[%clk 00:15:31]} {[%emt
00:00:02]} bxc6 {[%clk 00:15:21]} {[%emt 00:00:01]} 9. O-O {[%clk 00:15:32]}
{[%emt 00:00:04]} Bc5 {[%clk 00:14:58]} {[%emt 00:00:28]} 10. f3 {[%clk
00:15:35]} {[%emt 00:00:02]} Ng5 {[%clk 00:15:02]} 11. f4 {[%clk 00:15:19]}
{[%emt 00:00:21]} Ne4 {[%clk 00:15:04]} {[%emt 00:00:03]} 12. Nc3 {[%clk
00:15:17]} {[%emt 00:00:08]} O-O {[%clk 00:14:51]} {[%emt 00:00:18]} 13. Be3
{[%clk 00:15:02]} {[%emt 00:00:19]} f6 {[%clk 00:14:02]} {[%emt 00:00:54]} 14.
Nxe4 {[%clk 00:12:43]} {[%emt 00:02:24]} dxe4 {[%clk 00:14:06]} {[%emt
00:00:02]} 15. exf6 {[%clk 00:12:35]} {[%emt 00:00:13]} Qxf6 {[%clk 00:14:05]}
{[%emt 00:00:06]} 16. Kh1 {[%clk 00:12:27]} {[%emt 00:00:12]} Rad8 {[%clk
00:13:32]} {[%emt 00:00:38]} 17. c3 {[%clk 00:12:30]} {[%emt 00:00:02]} Be6
{[%clk 00:13:31]} {[%emt 00:00:07]} 18. Qc2 {[%clk 00:11:48]} {[%emt 00:00:47]}
Bc4 {[%clk 00:13:29]} {[%emt 00:00:07]} 19. Rf2 {[%clk 00:10:39]} {[%emt
00:01:14]} Bd3 {[%clk 00:13:31]} {[%emt 00:00:03]} 20. Qa4 {[%clk 00:10:18]}
{[%emt 00:00:26]} Bb6 {[%clk 00:13:16]} {[%emt 00:00:20]} 21. Re1 {[%clk
00:09:25]} {[%emt 00:00:58]} Rd6 {[%clk 00:11:36]} {[%emt 00:01:45]} 22. f5
{[%clk 00:07:22]} {[%emt 00:02:07]} Qh4 {[%clk 00:07:38]} {[%emt 00:04:04]} 23.
g3 {[%clk 00:04:57]} {[%emt 00:02:30]} Qh3 {[%clk 00:06:28]} {[%emt 00:01:15]}
24. Nxc6 {[%clk 00:04:14]} {[%emt 00:00:48]} Bxe3 {[%clk 00:05:43]} {[%emt
00:00:49]} 25. Rxe3 {[%clk 00:04:17]} {[%emt 00:00:02]} Qh6 {[%clk 00:05:40]}
{[%emt 00:00:07]} 26. Re1 {[%clk 00:03:34]} {[%emt 00:00:49]} Rxc6 {[%clk
00:05:37]} {[%emt 00:00:08]} 27. Qxa7 {[%clk 00:03:00]} {[%emt 00:00:39]} Qd6
{[%clk 00:05:12]} {[%emt 00:00:29]} 28. Qe3 {[%clk 00:01:51]} {[%emt 00:01:14]}
Qd5 {[%clk 00:05:16]} {[%emt 00:00:02]} 29. Qf4 {[%clk 00:00:36]} {[%emt
00:01:20]} e3+ {[%clk 00:05:18]} {[%emt 00:00:03]} 0-1

[Event "Rapid Tournament (RAP)"]
[Site "Biel, Switzerland"]
[Date "2026.07.12"]
[Round "2.4"]
[White "Ganguly, Surya Shekhar"]
[Black "Javet, Blaise"]
[Result "1-0"]
[TimeControl "15 + 5"]
[WhiteTitle "-"]
[BlackTitle "-"]
[WhiteFideId "5002150"]
[BlackFideId "1305026"]
[WhiteElo "2545"]
[BlackElo "1980"]

1. e4 {[%clk 00:15:08]} {[%emt 00:00:02]} c5 {[%clk 00:14:47]} {[%emt
00:00:22]} 2. Nf3 {[%clk 00:15:11]} {[%emt 00:00:02]} e6 {[%clk 00:14:45]}
{[%emt 00:00:08]} 3. Nc3 {[%clk 00:15:07]} {[%emt 00:00:09]} d6 {[%clk
00:14:43]} {[%emt 00:00:08]} 4. d4 {[%clk 00:15:09]} {[%emt 00:00:03]} cxd4
{[%clk 00:14:46]} {[%emt 00:00:02]} 5. Nxd4 {[%clk 00:15:12]} {[%emt 00:00:02]}
Nf6 {[%clk 00:14:45]} {[%emt 00:00:06]} 6. g4 {[%clk 00:15:15]} {[%emt
00:00:02]} h6 {[%clk 00:14:29]} {[%emt 00:00:21]} 7. Rg1 {[%clk 00:15:14]}
{[%emt 00:00:07]} Be7 {[%clk 00:14:31]} {[%emt 00:00:03]} 8. Be3 {[%clk
00:15:16]} {[%emt 00:00:02]} Nc6 {[%clk 00:14:29]} {[%emt 00:00:07]} 9. h3
{[%clk 00:15:19]} {[%emt 00:00:02]} Bd7 {[%clk 00:12:06]} {[%emt 00:02:28]} 10.
Qd2 {[%clk 00:15:03]} {[%emt 00:00:21]} Nxd4 {[%clk 00:12:08]} {[%emt
00:00:03]} 11. Bxd4 {[%clk 00:15:06]} {[%emt 00:00:02]} e5 {[%clk 00:11:26]}
{[%emt 00:00:47]} 12. Be3 {[%clk 00:15:09]} {[%emt 00:00:01]} a6 {[%clk
00:11:23]} {[%emt 00:00:09]} 13. O-O-O {[%clk 00:13:47]} {[%emt 00:01:26]} Rc8
{[%clk 00:11:23]} {[%emt 00:00:05]} 14. f3 {[%clk 00:13:41]} {[%emt 00:00:11]}
b5 {[%clk 00:11:20]} {[%emt 00:00:09]} 15. a3 {[%clk 00:13:42]} {[%emt
00:00:05]} Be6 {[%clk 00:09:27]} {[%emt 00:01:57]} 16. h4 {[%clk 00:13:27]}
{[%emt 00:00:20]} Nd7 {[%clk 00:08:42]} {[%emt 00:00:50]} 17. g5 {[%clk
00:13:16]} {[%emt 00:00:16]} h5 {[%clk 00:08:32]} {[%emt 00:00:15]} 18. g6
{[%clk 00:12:58]} {[%emt 00:00:23]} f6 {[%clk 00:08:13]} {[%emt 00:00:24]} 19.
Nd5 {[%clk 00:12:49]} {[%emt 00:00:14]} Nc5 {[%clk 00:06:09]} {[%emt 00:02:08]}
20. Kb1 {[%clk 00:12:52]} {[%emt 00:00:02]} Rb8 {[%clk 00:05:00]} {[%emt
00:01:14]} 21. Rh1 {[%clk 00:10:14]} {[%emt 00:02:43]} Bf8 {[%clk 00:03:31]}
{[%emt 00:01:35]} 22. Bh3 {[%clk 00:10:04]} {[%emt 00:00:15]} Rc8 {[%clk
00:02:37]} {[%emt 00:00:59]} 23. Bxc5 {[%clk 00:09:44]} {[%emt 00:00:25]} Bxh3
{[%clk 00:02:40]} {[%emt 00:00:02]} 24. Bb6 {[%clk 00:09:39]} {[%emt 00:00:10]}
Qd7 {[%clk 00:02:42]} {[%emt 00:00:03]} 25. Nc7+ {[%clk 00:09:32]} {[%emt
00:00:13]} Rxc7 {[%clk 00:02:08]} {[%emt 00:00:40]} 26. Bxc7 {[%clk 00:09:35]}
{[%emt 00:00:02]} Qxc7 {[%clk 00:01:58]} {[%emt 00:00:15]} 27. Rxh3 {[%clk
00:09:38]} {[%emt 00:00:02]} Be7 {[%clk 00:02:02]} 28. Qd5 {[%clk 00:09:38]}
{[%emt 00:00:05]} Rf8 {[%clk 00:01:28]} {[%emt 00:00:38]} 29. f4 {[%clk
00:09:13]} {[%emt 00:00:29]} Qc8 {[%clk 00:01:05]} {[%emt 00:00:29]} 30. f5
{[%clk 00:09:15]} {[%emt 00:00:03]} Kd8 {[%clk 00:00:44]} {[%emt 00:00:26]} 31.
Rc3 {[%clk 00:09:18]} {[%emt 00:00:02]} 1-0

[Event "Rapid Tournament (RAP)"]
[Site "Biel, Switzerland"]
[Date "2026.07.12"]
[Round "2.5"]
[White "Alexakis, Dimitrios"]
[Black "Sasikiran, Krishnan"]
[Result "0-1"]
[TimeControl "15 + 5"]
[WhiteTitle "-"]
[BlackTitle "-"]
[WhiteFideId "4200527"]
[BlackFideId "5004985"]
[WhiteElo "1954"]
[BlackElo "2520"]

1. e4 {[%clk 00:15:06]} {[%emt 00:00:01]} c5 {[%clk 00:15:07]} {[%emt
00:00:06]} 2. Nf3 {[%clk 00:15:09]} {[%emt 00:00:01]} d6 {[%clk 00:15:10]}
{[%emt 00:00:02]} 3. d4 {[%clk 00:15:11]} {[%emt 00:00:03]} cxd4 {[%clk
00:15:12]} {[%emt 00:00:03]} 4. Nxd4 {[%clk 00:15:12]} {[%emt 00:00:03]} Nf6
{[%clk 00:15:16]} {[%emt 00:00:02]} 5. Nc3 {[%clk 00:15:15]} {[%emt 00:00:02]}
a6 {[%clk 00:15:19]} {[%emt 00:00:02]} 6. Rg1 {[%clk 00:15:18]} {[%emt
00:00:01]} e5 {[%clk 00:14:50]} {[%emt 00:00:34]} 7. Nb3 {[%clk 00:15:12]}
{[%emt 00:00:11]} h5 {[%clk 00:14:44]} {[%emt 00:00:11]} 8. Bg5 {[%clk
00:14:57]} {[%emt 00:00:19]} Be6 {[%clk 00:14:11]} {[%emt 00:00:39]} 9. Qd2
{[%clk 00:14:44]} {[%emt 00:00:17]} Nbd7 {[%clk 00:12:46]} {[%emt 00:01:31]} 10.
O-O-O {[%clk 00:14:25]} {[%emt 00:00:24]} b5 {[%clk 00:12:01]} {[%emt
00:00:51]} 11. f3 {[%clk 00:12:25]} {[%emt 00:02:03]} Be7 {[%clk 00:11:25]}
{[%emt 00:00:41]} 12. h4 {[%clk 00:11:18]} {[%emt 00:01:12]} Rc8 {[%clk
00:10:08]} {[%emt 00:01:24]} 13. Kb1 {[%clk 00:08:57]} {[%emt 00:02:24]} O-O
{[%clk 00:08:20]} {[%emt 00:01:54]} 14. Be2 {[%clk 00:08:56]} {[%emt 00:00:05]}
Nb6 {[%clk 00:05:04]} {[%emt 00:03:21]} 15. Bxf6 {[%clk 00:06:00]} {[%emt
00:03:01]} Bxf6 {[%clk 00:04:07]} {[%emt 00:01:02]} 16. Qxd6 {[%clk 00:06:03]}
{[%emt 00:00:02]} Rxc3 {[%clk 00:03:33]} {[%emt 00:00:39]} 17. Qxd8 {[%clk
00:05:48]} {[%emt 00:00:18]} Bxd8 {[%clk 00:03:31]} {[%emt 00:00:08]} 18. bxc3
{[%clk 00:05:49]} {[%emt 00:00:04]} Na4 {[%clk 00:03:34]} {[%emt 00:00:02]} 19.
Rd2 {[%clk 00:03:43]} {[%emt 00:02:11]} Bxh4 {[%clk 00:03:00]} {[%emt
00:00:38]} 20. Ka1 {[%clk 00:02:27]} {[%emt 00:01:21]} Nxc3 {[%clk 00:02:34]}
{[%emt 00:00:31]} 21. Kb2 {[%clk 00:02:01]} {[%emt 00:00:31]} Na4+ {[%clk
00:02:20]} {[%emt 00:00:19]} 22. Ka1 {[%clk 00:02:02]} {[%emt 00:00:05]} Be7
{[%clk 00:02:00]} {[%emt 00:00:25]} 23. f4 {[%clk 00:01:33]} {[%emt 00:00:33]}
exf4 {[%clk 00:01:52]} {[%emt 00:00:13]} 24. e5 {[%clk 00:01:23]} {[%emt
00:00:15]} Bb4 {[%clk 00:01:47]} {[%emt 00:00:10]} 25. Bxh5 {[%clk 00:00:20]}
{[%emt 00:01:08]} Bxd2 {[%clk 00:01:47]} {[%emt 00:00:06]} 26. Nxd2 {[%emt
00:00:03]} Rc8 {[%clk 00:01:50]} 0-1

[Event "Rapid Tournament (RAP)"]
[Site "Biel, Switzerland"]
[Date "2026.07.12"]
[Round "2.6"]
[White "Alexakis, Dimitris"]
[Black "Laub, Patrick"]
[Result "1-0"]
[TimeControl "15 + 5"]
[WhiteTitle "-"]
[BlackTitle "-"]
[WhiteFideId "4277023"]
[BlackFideId "1302566"]
[WhiteElo "2518"]
[BlackElo "1949"]

1. e4 {[%clk 00:15:07]} {[%emt 00:00:02]} c6 {[%clk 00:15:04]} {[%emt
00:00:07]} 2. d4 {[%clk 00:14:57]} {[%emt 00:00:15]} d5 {[%clk 00:15:07]}
{[%emt 00:00:02]} 3. Nc3 {[%clk 00:15:00]} {[%emt 00:00:02]} dxe4 {[%clk
00:15:10]} {[%emt 00:00:02]} 4. Nxe4 {[%clk 00:15:02]} {[%emt 00:00:02]} Nf6
{[%clk 00:15:14]} {[%emt 00:00:01]} 5. Nxf6+ {[%clk 00:14:49]} {[%emt
00:00:19]} exf6 {[%clk 00:15:17]} {[%emt 00:00:02]} 6. c3 {[%clk 00:14:52]}
{[%emt 00:00:02]} Bd6 {[%clk 00:15:12]} {[%emt 00:00:10]} 7. Bd3 {[%clk
00:14:54]} {[%emt 00:00:03]} O-O {[%clk 00:15:11]} {[%emt 00:00:05]} 8. Ne2
{[%clk 00:14:57]} {[%emt 00:00:03]} Re8 {[%clk 00:15:06]} {[%emt 00:00:10]} 9.
O-O {[%clk 00:14:58]} {[%emt 00:00:04]} Nd7 {[%clk 00:15:05]} {[%emt 00:00:07]}
10. Bf4 {[%clk 00:14:42]} {[%emt 00:00:21]} Nf8 {[%clk 00:14:59]} {[%emt
00:00:11]} 11. Bxd6 {[%clk 00:14:41]} {[%emt 00:00:05]} Qxd6 {[%clk 00:15:01]}
{[%emt 00:00:03]} 12. Ng3 {[%clk 00:14:43]} {[%emt 00:00:04]} Ng6 {[%clk
00:14:54]} {[%emt 00:00:11]} 13. Qh5 {[%clk 00:14:18]} {[%emt 00:00:30]} Qf4
{[%clk 00:12:49]} {[%emt 00:02:08]} 14. Qd1 {[%clk 00:12:19]} {[%emt 00:02:06]}
Bg4 {[%clk 00:12:09]} {[%emt 00:00:46]} 15. Qc1 {[%clk 00:11:56]} {[%emt
00:00:29]} Qxc1 {[%clk 00:10:56]} {[%emt 00:01:17]} 16. Rfxc1 {[%clk 00:10:52]}
Nf4 {[%clk 00:10:54]} {[%emt 00:01:17]} 17. Bf1 {[%clk 00:10:50]} {[%emt
00:00:06]} Ne2+ {[%clk 00:10:44]} {[%emt 00:00:15]} 18. Bxe2 {[%clk 00:09:56]}
{[%emt 00:00:59]} Bxe2 {[%clk 00:10:45]} {[%emt 00:00:04]} 19. Re1 {[%clk
00:09:59]} {[%emt 00:00:02]} Bd3 {[%clk 00:09:44]} {[%emt 00:01:06]} 20. f3
{[%clk 00:09:52]} {[%emt 00:00:13]} Kf8 {[%clk 00:09:37]} {[%emt 00:00:12]} 21.
Kf2 {[%clk 00:08:50]} {[%emt 00:01:06]} b6 {[%clk 00:03:28]} {[%emt 00:06:14]}
22. Re4 {[%emt 00:00:16]} Re7 23. Rxe7 {[%clk 00:08:39]} Rd8 {[%emt 00:00:18]}
24. Re8+ Rxe8 {[%clk 00:03:15]} 25. Rd1 {[%clk 00:08:40]} {[%emt 00:00:04]} Bc4
{[%clk 00:01:33]} {[%emt 00:01:46]} 26. b3 {[%clk 00:08:39]} {[%emt 00:00:06]}
Be6 {[%clk 00:01:37]} {[%emt 00:00:02]} 27. Nf1 {[%clk 00:08:13]} {[%emt
00:00:30]} Rd8 {[%clk 00:01:31]} {[%emt 00:00:11]} 28. Ne3 {[%clk 00:08:13]}
{[%emt 00:00:04]} Ke7 {[%clk 00:01:27]} {[%emt 00:00:10]} 29. c4 {[%clk
00:06:49]} {[%emt 00:01:30]} h6 {[%clk 00:01:28]} {[%emt 00:00:04]} 30. Ke2
{[%clk 00:05:38]} {[%emt 00:01:15]} Rd6 {[%clk 00:01:13]} {[%emt 00:00:20]} 31.
Kd3 {[%clk 00:05:36]} {[%emt 00:00:07]} f5 {[%clk 00:00:44]} {[%emt 00:00:34]}
32. Kc3 {[%clk 00:05:33]} {[%emt 00:00:08]} f6 {[%clk 00:00:47]} {[%emt
00:00:02]} 33. a4 {[%clk 00:05:04]} {[%emt 00:00:34]} g6 {[%clk 00:00:50]}
{[%emt 00:00:01]} 34. a5 {[%clk 00:05:06]} {[%emt 00:00:04]} f4 {[%clk
00:00:49]} {[%emt 00:00:06]} 35. Nc2 {[%clk 00:04:59]} {[%emt 00:00:12]} bxa5
{[%clk 00:00:47]} {[%emt 00:00:07]} 36. Ra1 {[%clk 00:04:59]} {[%emt 00:00:04]}
Bf5 {[%clk 00:00:48]} {[%emt 00:00:04]} 37. Rxa5 {[%clk 00:04:48]} {[%emt
00:00:17]} Bxc2 {[%clk 00:00:51]} {[%emt 00:00:02]} 38. Rxa7+ {[%clk 00:04:47]}
{[%emt 00:00:06]} Ke6 {[%clk 00:00:55]} 39. c5 {[%clk 00:02:09]} {[%emt
00:02:44]} Rd5 {[%clk 00:00:48]} {[%emt 00:00:12]} 40. Kxc2 {[%clk 00:02:08]}
{[%emt 00:00:05]} Rxd4 {[%clk 00:00:52]} 41. Rc7 {[%clk 00:01:55]} {[%emt
00:00:19]} Kd5 {[%clk 00:00:53]} {[%emt 00:00:05]} 42. Kc3 {[%clk 00:01:57]}
{[%emt 00:00:03]} Kxc5 {[%clk 00:00:33]} {[%emt 00:00:25]} 43. Rxc6+ {[%clk
00:01:59]} {[%emt 00:00:03]} Kxc6 {[%clk 00:00:37]} 44. Kxd4 {[%clk 00:02:02]}
{[%emt 00:00:02]} 1-0